Cogmind - Beta 15 @@@ ROGUE MODE // 2025.06.07 @ 10:24:00 Player: H3-RMN Result: Destroyed by Lightning with EMDS Performance ------------- Evolutions (4) 2000 Regions Visited (11) 2200 Robots Destroyed (127) 635 Value Destroyed (4590) 4590 Prototype IDs (33) 660 Alien Tech Used (0) 0 Bonus (2561) 2561 TOTAL SCORE: 12646 Bonus ------- High Alert Combat Kills 12 Follower Combat Kills 930 Network Hubs Disabled 400 Registered with UFD 300 Met Optimus in HQ 500 Met R17 at Cetus 500 Friendly Fire -81 Cogmind --------- Core Integrity 0/850 Matter 263/300 Energy 100/100 System Corruption 18% Temperature Cool (0) Movement Hovering (150) Ox1 Location -6/Hub_04(d) Parts ------- > --- POWER (2) -------- (None) > --- PROPULSION (4) --- Combat Airjet > --- UTILITY (7) ------ Large Storage Unit Enhanced Optical Array Experimental Signal Interpreter Jamming Amplifier Improved Hacking Suite Improved Hacking Suite > --- WEAPON (2) ------- (None) > --- INVENTORY (15) --- Quantum Reactor Combat Airjet Combat Airjet Medium Storage Unit Energy Well (350) Deep Structural Scanner Experimental Sensor Array Centrium Medium Armor Plating Authchip [Weapon] Advanced Variable Charge Gun Cooled Plasma Cannon Advanced KE Penetrator Mini Grenade Launcher CPS Tube (1) Peak State ------------ > --- POWER ------------ Reinforced Deuterium Engine Heavy Deuterium Engine > --- PROPULSION ------- Improved Gravmag System Cooled Aerolev Unit Cooled Aerolev Unit Cooled Aerolev Unit > --- UTILITY ---------- Large Storage Unit Experimental Signal Interpreter Targeting Computer Armor Integrity Analyzer Centrium Medium Armor Plating Centrium Medium Armor Plating Centrium Medium Armor Plating > --- WEAPON ----------- Ion Burst Cannon Bore Cannon > --- INVENTORY -------- Gravmag Array Improved Linear Gravjet Improved Linear Gravjet Energy Well Deep Structural Scanner Experimental Sensor Array Improved Transmission Jammer Authchip [Weapon] Advanced Variable Charge Gun Cooled Plasma Cannon Improved Proton Missile Launcher Mini Grenade Launcher CPS Tube Phasing Sabre [Rating: 92] Favorites ----------- Power Neutrino Core Engine Cooled Ion Engine Power Core Neutrino Core Propulsion Improved Linear Gravjet Treads Light Treads Wheel Wheel Hover Unit Improved Linear Gravjet Flight Unit VTOL Module Utility Improved Hacking Suite Device Experimental Sensor Array Storage Large Storage Unit Processor Experimental Signal Interpreter Hackware Improved Hacking Suite Protection Makeshift Light Armor Plating Weapon Phasing Sabre Energy Gun Spread Laser Energy Cannon Subdweller Beam Cannon Ballistic Gun Light Assault Rifle Ballistic Cannon Light Cannon Launcher Mini Grenade Launcher Special Weapon CPS Tube Impact Weapon Powered Hammer Slashing Weapon Phasing Sabre Special Melee Weapon Advanced Datajack Build | -11 -10 -10 -10 -9 -6 -6 -6 -6 -6 -6 -6 ------- Run | Yrd Mat Min Sub Scr Fac Was Fac Ext Cet Arc Hub Slots Evolved 8 | . . . . . 8 . . . . . . Power 1 | . . . . . 1 . . . . . . Propulsion 2 | . . . . . 2 . . . . . . Utility 5 | . . . . . 5 . . . . . . Weapon . | . . . . . . . . . . . . Parts Attached 143 | 8 13 2 19 12 17 3 21 25 5 11 7 Power 16 | 1 2 . 2 2 2 1 1 2 . 1 2 Engine 14 | 1 2 . 2 2 1 1 1 2 . . 2 Core 2 | . . . . . 1 . . . . 1 . Reactor . | . . . . . . . . . . . . Propulsion 36 | 2 4 2 6 2 3 2 6 4 1 2 2 Treads 2 | . 1 . 1 . . . . . . . . Leg . | . . . . . . . . . . . . Wheel 12 | 2 3 2 5 . . . . . . . . Hover 14 | . . . . . . . 5 4 1 2 2 Flight 8 | . . . . 2 3 2 1 . . . . Utility 59 | 3 3 . 2 6 9 . 12 12 3 7 2 Device 22 | 2 . . 1 4 4 . 6 2 . 3 . Storage 5 | 1 1 . . 2 . . 1 . . . . Processor 8 | . 1 . . . 1 . 2 2 . . 2 Hackware 12 | . . . . . 4 . 2 2 . 4 . Protection 12 | . 1 . 1 . . . 1 6 3 . . Artifact . | . . . . . . . . . . . . Weapon 32 | 2 4 . 9 2 3 . 2 7 1 1 1 Energy Gun 6 | 2 1 . 3 . . . . . . . . Energy Cannon 4 | . . . 2 . 1 . . 1 . . . Ballistic Gun 6 | . 2 . 2 . . . . 1 . . 1 Ballistic Cannon 3 | . 1 . . . . . . 2 . . . Launcher 3 | . . . 1 1 . . . . 1 . . Special Weapon 1 | . . . . . . . . 1 . . . Impact Weapon 2 | . . . . . 2 . . . . . . Slashing Weapon 4 | . . . 1 . . . 1 2 . . . Piercing Weapon . | . . . . . . . . . . . . Special Melee Weapon 3 | . . . . 1 . . 1 . . 1 . Unidentified Prototypes 9 | . 1 . . . 2 . 2 1 1 . 2 Corrupted Parts 2 | . . . . . . . . 1 . . 1 System Corruption 12 | . . . . . . . . 2 . . 10 Parts Lost 38 | . 2 1 3 . 3 1 1 13 2 . 12 Power 3 | . . . . . . . . 1 . . 2 Propulsion 16 | . 1 1 1 . 2 1 1 4 . . 5 Utility 13 | . . . 1 . 1 . . 7 1 . 3 Weapon 6 | . 1 . 1 . . . . 1 1 . 2 Highest Loss Streak 9 | . 1 1 2 . 1 2 1 9 1 . 7 To Critical Strikes . | . . . . . . . . . . . . Average Backups 15 | 2 10 23 24 14 8 9 11 14 14 14 14 Power 1 | . 1 4 3 1 . 1 . . . 1 1 Propulsion 3 | 1 5 10 10 3 . . 2 4 2 2 1 Utility 4 | . . 2 2 5 5 4 6 5 5 4 5 Weapon 4 | . 2 5 7 2 1 2 1 3 5 6 5 Tool/Special . | . . . . . . . . . . . . Unused Backups 40 | . 3 . 8 10 3 1 4 4 . . 7 Power 4 | . 1 . 1 1 . . . . . . 1 Propulsion 8 | . . . 2 3 . . . 1 . . 2 Utility 17 | . 1 . 1 3 3 1 4 1 . . 3 Weapon 10 | . 1 . 4 2 . . . 2 . . 1 Tool/Special 1 | . . . . 1 . . . . . . . Average Slot Usage (%) 89 | . 99 99 96 83 97 90 97 94 97 86 83 Engine 6 | . 13 14 14 12 5 3 5 6 13 . 3 Core 3 | . . . . . 5 2 4 3 . 5 2 Treads 2 | . 6 . 3 7 . . . . . . . Wheel 5 | . 21 27 21 7 . . . . . . . Hover 11 | . . . . . . . 12 25 24 19 20 Flight 4 | . . . . 13 25 24 13 . . . . Device 6 | . 6 . 2 5 13 13 14 8 . 6 7 Storage 8 | . 14 14 14 8 6 6 6 6 6 6 6 Processor 4 | . 4 . . . 5 6 9 6 20 6 7 Hackware 13 | . . . . . 18 20 14 15 . 24 20 Protection 4 | . 3 14 11 7 . . . 6 18 . 1 Energy Gun 2 | . 16 14 7 . . . . . . . . Energy Cannon 2 | . . . 13 7 . . 2 1 2 . . Ballistic Cannon 1 | . 2 14 . . . . . . 9 . . Slashing Weapon 4 | . . . . 7 . . 1 4 . 5 5 Special Melee Weapon 3 | . . . . 5 6 6 2 . . 5 6 Peak Build Rating 92 | 9 13 15 21 26 63 59 90 91 92 90 87 Average Rating 56 | 5 11 13 18 17 59 54 71 77 84 86 81 On Entrance 44 | . 9 13 15 21 20 55 59 90 77 90 87 Naked Turns 1 | . . . . 1 . . . . . . . Heaviest Build 105 | 14 97 97 105 100 27 24 50 81 86 84 46 Greatest Support 58 | 32 32 20 40 20 29 25 58 50 45 43 40 Greatest Overweight (x) 29 | . 9 9 5 29 1 . 1 2 2 13 1 Average Overweight (x) 2 | . 1 4 3 3 . . . . 1 10 . Largest Inventory Capacity 25 | 8 25 25 25 25 10 10 15 15 15 15 15 Average Capacity 15 | 6 12 25 25 15 10 10 12 15 15 15 15 Most Carried 25 | 5 22 25 25 25 10 10 15 15 15 15 15 Average Carried 15 | 2 10 23 24 15 8 9 11 14 14 14 14 Final Capacity 25 | 8 25 25 25 10 10 10 15 15 15 15 15 Final Carried 25 | 4 22 25 25 10 9 10 15 15 15 15 14 Class Distribution -------------------- 41% | Hacker-Mutant 34% | Mutant 8% | Hacker-Sprinter 5% | Scavenger-Mutant 3% | Hacker-Scout Dominant Class ---------------- Mutant | -10/Materials Mutant | -10/Mines Mutant | -10/Subcaves Mutant | -9/Scraptown Hacker-Sprinter | -6/Factory Hacker-Sprinter | -6/Waste Hacker-Sprinter | -6/Factory Hacker-Gladiator | -6/Extension Scavenger-Mutant | -6/Cetus Hacker-Mutant | -6/Archives Hacker-Mutant | -6/Hub_04(d) Resources | -11 -10 -10 -10 -9 -6 -6 -6 -6 -6 -6 -6 ----------- Run | Yrd Mat Min Sub Scr Fac Was Fac Ext Cet Arc Hub Matter Collected 4097 | 219 411 88 311 594 306 24 844 519 226 435 120 Remotely . | . . . . . . . . . . . . Salvage Created 5776 | 31 569 175 423 . 546 24 934 1018 672 538 846 Parts 281 | 3 39 9 32 . 12 4 39 42 31 40 30 Haulers Intercepted 8 | . 1 . . . 4 . 2 . . . 1 Recyclers Shooed 3 | . . . . . . . 1 1 . . 1 Parts Field Recycled . | . . . . . . . . . . . . Retrieved Matter . | . . . . . . . . . . . . Parts Self-Destructed 17 | . . . 17 . . . . . . . . Prevented . | . . . . . . . . . . . . Kills | -11 -10 -10 -10 -9 -6 -6 -6 -6 -6 -6 -6 ------- Run | Yrd Mat Min Sub Scr Fac Was Fac Ext Cet Arc Hub Combat Hostiles Destroyed 77 | . 15 7 12 . 1 1 11 12 8 4 6 Melee 12 | . . . . . . . 1 8 . . 3 Guns 20 | . 14 3 3 . . . . . . . . Cannons 19 | . . 4 5 . . 1 1 4 . 4 . AOE 17 | . 1 . 4 . . . 9 . 1 . 2 Classes Destroyed 18 | 1 7 1 3 . 1 1 3 1 . . . Worker 6 | . 1 1 . . . . 2 . . . 2 Builder 2 | . . . . . . . 1 1 . . . Tunneler 2 | 2 . . . . . . . . . . . Hauler 8 | . 1 . . . 4 . 2 . . . 1 Recycler 7 | . . . . . . . 3 2 . . 2 Mechanic 1 | . 1 . . . . . . . . . . Operator 13 | . . . . . 2 . 2 . . 9 . Turret 1 | . . . 1 . . . . . . . . Watcher 11 | . 2 . . . 3 . 2 . 2 . 2 Swarmer 20 | . 7 . 3 . 1 . 9 . . . . Cutter 1 | . . . . . . 1 . . . . . Grunt 26 | . 7 5 2 . . . . 7 . . 5 Sentry 10 | . . . . . . . . 5 . 4 1 Programmer 2 | . . . . . . . 2 . . . . Cetus Guard 8 | . . . . . . . . . 8 . . Cobbler 1 | . . . 1 . . . . . . . . Subdweller 8 | . 1 . 7 . . . . . . . . Zionite 1 | . . . 1 . . . . . . . . Assembled 2 | . . 2 . . . . . . . . . Best Kill Streak 6 | 2 3 5 4 . 3 1 6 3 5 4 6 Combat Bots Only 5 | . 3 5 3 . 1 1 5 3 4 3 3 Max Kills in Single Turn 5 | 2 1 1 3 . 1 1 3 1 2 1 5 Gunslinging . | . . . . . . . . . . . . Exploded 3 | . 1 . 2 . . . 3 . 1 . 2 Melee 1 | . . . . . . . 1 1 . . 1 Uniques/NPCs Destroyed . | . . . . . . . . . . . . Combat | -11 -10 -10 -10 -9 -6 -6 -6 -6 -6 -6 -6 -------- Run | Yrd Mat Min Sub Scr Fac Was Fac Ext Cet Arc Hub Hostile Shots Fired 635 | . 70 26 83 . 41 2 29 193 33 40 118 Missed 213 | . 19 6 36 . 22 1 18 56 12 12 31 Hits 422 | . 51 20 47 . 19 1 11 137 21 28 87 Melee 1 | . . . . . . 1 . . . . . Projectile 421 | . 51 20 47 . 19 . 11 137 21 28 87 Critical Strikes 22 | . . . 1 . 1 . 2 6 7 1 4 Part Disruptions 1 | . . . . . 1 . . . . . . Damage Taken 6549 | . 510 245 684 . 307 31 192 1921 561 657 1441 Core 1102 | . 139 23 82 . 63 . 8 376 . 25 386 Absorbed by Shields 119 | . . . . . . . . 119 . . . Redirected to Shielding 67 | . . . . . . . 21 46 . . . Ignored by Resistances 102 | . . . . . . . . 102 . . . Regen/Repaired (Parts) 113 | . . . . 113 . . . . . . . Core Remaining (%) 51 | 100 . . . 2 . . . . . . . Volleys Fired 264 | 1 72 18 70 . 3 3 28 15 18 35 1 Largest 2 | 2 2 2 2 . 1 1 1 2 2 2 1 Hottest 160 | 80 85 95 160 . 35 35 35 65 148 148 35 Shots Fired 399 | 2 129 35 116 . 3 3 30 23 20 37 1 Gun 216 | 2 129 17 58 . . . . 9 . . 1 Cannon 159 | . . 18 54 . 3 3 22 13 9 37 . Launcher 23 | . . . 4 . . . 8 . 11 . . Special 1 | . . . . . . . . 1 . . . Kinetic 145 | . 54 18 25 . . . . 9 4 34 1 Thermal 193 | 1 46 17 80 . 3 3 22 13 5 3 . Explosive 12 | . . . 4 . . . 8 . . . . Electromagnetic 48 | 1 29 . 7 . . . . . 11 . . Robot Hit Streak 12 | 1 8 8 7 . . 2 6 12 5 6 . Robot Miss Streak 6 | 1 6 4 3 . . 1 1 1 3 6 . Penetration Max 1 | . . . . . . . . 1 . . . Secondary Targets 3 | . 2 . 1 . . . . . . . . Max Gunslinging Chain 1 | . 1 . 1 . . . . . . . . Shots Hit Robots 366 | 1 82 28 60 1 20 2 35 59 9 41 28 Core Hits 212 | 2 53 28 30 . 3 1 22 24 14 18 17 Critical Kills 4 | . . . . . 1 . . . . 3 . Critical Parts Destroyed 15 | . . . 1 . 5 . 1 . 1 7 . Critical Strikes 35 | . . . 1 . 6 . 3 6 1 13 5 Destroy 13 | . . . 1 . . . . . 1 11 . Smash 7 | . . . . . 6 . 1 . . . . Sever 15 | . . . . . . . 2 6 . 2 5 Melee Attacks 208 | . . . 1 1 48 . 42 58 . 20 38 Impact 81 | . . . . . 45 . 26 10 . . . Slashing 123 | . . . 1 . . . 16 48 . 20 38 Piercing . | . . . . . . . . . . . . Sneak Attacks 38 | . . . 1 1 8 . 11 3 . 8 6 Combat Hostiles 2 | . . . . . . . 1 . . . 1 Follow-up Attacks 7 | . . . . . . . 2 5 . . . Damage Inflicted 14414 | 66 967 419 1732 . 1058 65 2662 2303 1241 1913 1988 Guns 1792 | 15 941 208 549 . . . . 79 . . . Cannons 2415 | . . 211 649 . . 65 256 415 147 672 . Explosions 2976 | 51 26 . 446 . . . 728 . 1094 . 631 Melee 7231 | . . . 88 . 1058 . 1678 1809 . 1241 1357 Ramming . | . . . . . . . . . . . . Kinetic 1597 | . 284 211 367 . . . . 79 26 630 . Thermal 2810 | 51 450 208 924 . . 65 410 415 245 42 . Explosive 896 | . . . 322 . . . 574 . . . . Electromagnetic 1880 | 15 233 . 31 . . . . . 970 . 631 Impact 2492 | . . . . . 1058 . 1206 228 . . . Slashing 4739 | . . . 88 . . . 472 1581 . 1241 1357 Piercing . | . . . . . . . . . . . . Highest Corruption 17 | . . . . . 3 12 17 6 6 6 17 Average Corruption 5 | . . . . . 1 9 8 4 6 5 12 Corruption Purged 22 | . . . . . 1 . 15 . . 6 . Corruption Blocked . | . . . . . . . . . . . . Effects 95 | . . . . . 5 2 38 30 9 8 3 Message Errors 22 | . . . . . . . 12 7 2 . 1 Matter Fused 29 | . . . . . 4 . 9 7 3 5 1 Heat Flow Errors 10 | . . . . . 1 . 3 5 . 1 . Energy Discharges 12 | . . . . . . 1 6 4 1 . . Parts Rejected 4 | . . . . . . . 1 1 1 1 . Data Loss (minor) 9 | . . . . . . . 3 3 2 . 1 Data Loss (major) 3 | . . . . . . . 2 1 . . . Misfires 4 | . . . . . . . 2 1 . 1 . Misdirections 1 | . . . . . . 1 . . . . . Weapon Failures 1 | . . . . . . . . 1 . . . Overload Shots 1 | . . . . . . . . . 1 . . Overflow Damage 1528 | . . . 6 . 488 2 553 49 . 261 169 Projectiles 3 | . . . 1 . . 2 . . . . . Explosions 59 | . . . 5 . . . 54 . . . . Melee 1466 | . . . . . 488 . 499 49 . 261 169 Knockbacks 12 | . . 1 1 . 3 . 4 2 . 1 . Impact 9 | . . . . . 3 . 4 2 . . . Kinetic 3 | . . 1 1 . . . . . . 1 . Secondary . | . . . . . . . . . . . . Self-Inflicted Damage 132 | . . . . . . . 30 . . . 102 Shots 3 | . . . . . . . 2 . . . 1 Rammed . | . . . . . . . . . . . . Targets Rammed . | . . . . . . . . . . . . Kicked . | . . . . . . . . . . . . Crushed . | . . . . . . . . . . . . Highest Temperature 373 | 18 172 362 298 . 254 . 244 295 373 324 1 Average Temperature 85 | 12 53 117 57 . 92 . 98 61 125 236 1 Received Heat Transfer 2285 | . 183 180 496 . 66 . 6 967 18 54 315 Effects 3 | . . . . . . . . . 1 2 . Energy Bleed 1 | . . . . . . . . . . 1 . Damage (minor) 2 | . . . . . . . . . 1 1 . Siege Activations . | . . . . . . . . . . . . Martial Activations . | . . . . . . . . . . . . Shielding Activations . | . . . . . . . . . . . . Robots Disrupted 2 | . . . 1 . . . . . 1 . . Combat Hostiles 2 | . . . 1 . . . . . 1 . . Robots Corrupted 21 | . . . . . 5 . 8 . 7 . 1 Combat Hostiles 9 | . . . . . 1 . . . 7 . 1 Parts Fried 30 | . 1 . . . 4 . 15 . 5 . 5 Impact Corruptions 39 | . . . . . 17 . 21 1 . . . Robots Melted . | . . . . . . . . . . . . Combat Hostiles . | . . . . . . . . . . . . Parts Melted 4 | . 1 . . . . . 1 2 . . . Heat Transferred 3643 | 50 640 260 1143 . . 100 450 650 300 50 . Parts Sabotaged . | . . . . . . . . . . . . Parts Stolen . | . . . . . . . . . . . . Parts Stripped . | . . . . . . . . . . . . Power Chain Reactions 5 | 1 1 . 1 . . . . . 1 . 1 Alert | -11 -10 -10 -10 -9 -6 -6 -6 -6 -6 -6 -6 ------- Run | Yrd Mat Min Sub Scr Fac Was Fac Ext Cet Arc Hub Maximum Alert Level 2 | . . . . . . . 1 2 1 1 1 Low Security (%) 92 | 100 100 100 . . 100 100 62 83 . 98 98 Level 1 6 | . . . . . . . 37 9 100 1 1 Level 2 . | . . . . . . . . 7 . . . Level 3 . | . . . . . . . . . . . . Level 4 . | . . . . . . . . . . . . Level 5 . | . . . . . . . . . . . . High Security . | . . . . . . . . . . . . Max Security . | . . . . . . . . . . . . Peak Influence 488 | 10 160 60 . . 83 38 375 488 377 220 234 Initial 266 | . . 3 . . . 27 5 170 266 130 . Average 45 | 2 82 7 . . 31 25 148 131 335 9 27 Influence Increases 4127 | 10 474 120 208 . 353 21 743 1175 241 195 587 Destroy 0b10 Robot/C 1700 | . 280 100 120 . 20 20 220 580 160 80 120 Destroy 0b10 Robot/NC 280 | 10 25 5 . . 45 . 70 35 10 45 35 Destroy Leader 262 | . 76 . 10 . 14 . 46 82 . . 34 Allied During Kill 258 | . . . 3 . . . . 239 16 . . Successful Hack 207 | . 30 . . . 57 . 42 37 . . 41 Select Force Hacks 90 | . 60 . . . . . 30 . . . . Disable Machine 285 | . . 15 . . . . 60 15 45 60 90 Destroy Structure 325 | . 3 . . . 22 1 110 7 10 10 162 Partial Spotted 135 | . . . . . 60 . 30 30 . . 15 Lose Combat Pursuer 585 | . . . 75 . 135 . 135 150 . . 90 Influence Decreases 4029 | 10 465 129 126 82 275 91 402 1048 390 522 489 Entered New Map 728 | . . 6 . 82 . 51 3 179 210 197 . Time Decay 2421 | 10 445 113 126 . 245 30 389 463 140 305 155 Lost Part 306 | . 20 10 . . 30 10 10 86 20 . 120 Lost Ally 360 | . . . . . . . . 320 20 20 . Purge Threat 214 | . . . . . . . . . . . 214 Squads Dispatched 36 | . 3 . . . 10 . 13 3 . . 7 Investigation 23 | . 3 . . . 6 . 10 1 . . 3 Extermination 5 | . . . . . 2 . 2 . . . 1 Reinforcement 8 | . . . . . 2 . 1 2 . . 3 Assault . | . . . . . . . . . . . . Garrison . | . . . . . . . . . . . . Intercept . | . . . . . . . . . . . . Searches Triggered . | . . . . . . . . . . . . Construction Impeded 2 | . . . . . . . . 1 . . 1 Haulers Reinforced 2 | . . . . . 1 . . . . . 1 Active Scanning Responses . | . . . . . . . . . . . . Cargo Convoy Interrupts . | . . . . . . . . . . . . Stealth | -11 -10 -10 -10 -9 -6 -6 -6 -6 -6 -6 -6 --------- Run | Yrd Mat Min Sub Scr Fac Was Fac Ext Cet Arc Hub Distress Signals 12 | . 4 . . . . . . 3 2 1 2 Communications Jammed 3 | . . . . . . . . . . . 3 Distress Signals 3 | . . . . . . . . . . . 3 Times Spotted 196 | . 25 8 21 . 24 7 20 41 8 17 25 Peak Tracking Total 15 | . 4 4 5 . 10 6 5 13 5 2 15 Tactical Retreats 22 | . . . 3 . 6 . 4 5 . . 4 Traps | -11 -10 -10 -10 -9 -6 -6 -6 -6 -6 -6 -6 ------- Run | Yrd Mat Min Sub Scr Fac Was Fac Ext Cet Arc Hub Traps Triggered 6 | . 1 . . . 2 . 2 1 . . . Indirectly . | . . . . . . . . . . . . Trap Hack Attempts . | . . . . . . . . . . . . Triggered . | . . . . . . . . . . . . Disarmed 1 | . . . . . . . . 1 . . . Reprogrammed . | . . . . . . . . . . . . Reused . | . . . . . . . . . . . . Traps Extracted . | . . . . . . . . . . . . Installed . | . . . . . . . . . . . . Triggered . | . . . . . . . . . . . . Objects Rigged 1 | . . . . . . . . . . . 1 Exploded 1 | . . . . . . . . . . . 1 Machines | -11 -10 -10 -10 -9 -6 -6 -6 -6 -6 -6 -6 ---------- Run | Yrd Mat Min Sub Scr Fac Was Fac Ext Cet Arc Hub Machines Disabled 21 | . . 1 . . . . 4 3 3 4 6 Max in Single Turn 3 | . . . . . . . 2 1 1 1 3 Garrison Access 3 | . . . . . 3 . . . . . . Network Hub 2 | . . . . . . . . . . . 2 Machines Repaired . | . . . . . . . . . . . . Machines Dismantled . | . . . . . . . . . . . . Machines Sabotaged . | . . . . . . . . . . . . Overloaded Fab Kills . | . . . . . . . . . . . . Hacking | -11 -10 -10 -10 -9 -6 -6 -6 -6 -6 -6 -6 --------- Run | Yrd Mat Min Sub Scr Fac Was Fac Ext Cet Arc Hub Machines Accessed 79 | . 11 . . 3 24 . 16 16 1 . 8 Terminals 51 | . 8 . . . 13 . 6 15 1 . 8 Fabricators 7 | . . . . . 3 . 4 . . . . Repair Stations 2 | . 1 . . . . . 1 . . . . Recycling Units 9 | . 2 . . . 2 . 4 1 . . . Scanalyzers 4 | . . . . . 3 . 1 . . . . Garrison Access 3 | . . . . . 3 . . . . . . Total Hacks 266 | . 36 . . 32 78 . 47 37 3 . 33 Successful 174 | . 20 . . 32 53 . 25 23 . . 21 Failed 90 | . 16 . . . 25 . 22 13 3 . 11 Catastrophic 7 | . 1 . . . . . 3 . 2 . 1 Database Lockouts 2 | . . . . . . . . 1 . . 1 Manual 108 | . 19 . . . 26 . 17 24 . . 22 Terminals 166 | . 29 . . . 49 . 18 34 3 . 33 Fabricators 19 | . . . . . 4 . 15 . . . . Repair Stations 3 | . 1 . . . . . 2 . . . . Recycling Units 22 | . 6 . . . 4 . 9 3 . . . Scanalyzers 21 | . . . . . 18 . 3 . . . . Garrison Access 3 | . . . . . 3 . . . . . . Terminal Hacks 85 | . 7 . . 32 18 . 3 12 . . 13 Record 24 | . . . . 24 . . . . . . . Part Schematic 9 | . 1 . . . 5 . . 1 . . 2 Robot Analysis 9 | . 1 . . 8 . . . . . . . Prototype ID Bank 7 | . 1 . . . 4 . . . . . 2 Open Door 7 | . . . . . . . . 7 . . . Level Access Points 1 | . . . . . . . . . . . 1 Branch Access Points 3 | . . . . . 1 . 1 1 . . . Machine Index 2 | . . . . . 1 . . . . . 1 Terminal Index 2 | . 1 . . . 1 . . . . . . Fabricator Index 1 | . . . . . 1 . . . . . . Unreport Threat 4 | . . . . . . . . 1 . . 3 Locate Traps 4 | . 1 . . . 1 . . 1 . . 1 Disarm Traps 1 | . . . . . . . . 1 . . . Recall Investigation 2 | . . . . . 1 . 1 . . . . Recall Reinforcements 1 | . . . . . . . . . . . 1 Hauler Manifests 3 | . 1 . . . 1 . 1 . . . . Registered Components 1 | . . . . . 1 . . . . . . Zone Layout 4 | . 1 . . . 1 . . . . . 2 Fabricator Hacks 9 | . . . . . 1 . 8 . . . . Network Status 1 | . . . . . . . 1 . . . . Load Schematic 4 | . . . . . . . 4 . . . . Build 4 | . . . . . 1 . 3 . . . . Repair Station Hacks 2 | . 1 . . . . . 1 . . . . Scan Component 1 | . . . . . . . 1 . . . . Refit 1 | . 1 . . . . . . . . . . Recycling Unit Hacks 10 | . 3 . . . 1 . 4 2 . . . Report Inventory 7 | . 2 . . . 1 . 3 1 . . . Retrieve Components 3 | . 1 . . . . . 1 1 . . . Scanalyzer 17 | . . . . . 17 . . . . . . Insert Component 8 | . . . . . 8 . . . . . . Analyze 9 | . . . . . 9 . . . . . . Garrison Access Hacks 3 | . . . . . 3 . . . . . . Seal Access 3 | . . . . . 3 . . . . . . Unauthorized Hacks 48 | . 9 . . . 13 . 9 9 . . 8 Terminals 33 | . 7 . . . 10 . . 8 . . 8 Track 6 | . 1 . . . 3 . . 1 . . 1 Botnet 7 | . 1 . . . 2 . . 2 . . 2 Detonate 1 | . . . . . . . . . . . 1 Disrupt 1 | . . . . . . . . . . . 1 Skim 16 | . 5 . . . 5 . . 5 . . 1 Sabotage 2 | . . . . . . . . . . . 2 Fabricators 5 | . . . . . 1 . 4 . . . . Prioritize 1 | . . . . . . . 1 . . . . Liberate 1 | . . . . . . . 1 . . . . Haulers 2 | . . . . . 1 . 1 . . . . Recompile 1 | . . . . . . . 1 . . . . Repair Stations . | . . . . . . . . . . . . Recycling Units 9 | . 2 . . . 2 . 4 1 . . . Tunnel 2 | . 2 . . . . . . . . . . Fedlink 7 | . . . . . 2 . 4 1 . . . Scanalyzers 1 | . . . . . . . 1 . . . . Extract 1 | . . . . . . . 1 . . . . Garrison Access . | . . . . . . . . . . . . Data Cores Recovered 1 | . . . . . 1 . . . . . . Used . | . . . . . . . . . . . . Hacking Detections 65 | . 10 . . . 20 . 14 12 1 . 8 Full Trace Events 9 | . . . . . 4 . 4 . . . 1 Feedback Events 2 | . . . . . 2 . . . . . . Corruption 1 | . . . . . 1 . . . . . . Hackware Fried 1 | . . . . . 1 . . . . . . Feedback Blocked . | . . . . . . . . . . . . Robot Schematics Acquired . | . . . . . . . . . . . . Robots Built . | . . . . . . . . . . . . Authchips . | . . . . . . . . . . . . Time . | . . . . . . . . . . . . Total Robot Build Rating . | . . . . . . . . . . . . Part Schematics Acquired 17 | . 1 . . . 11 . 2 1 . . 2 Parts Built 7 | . . . . . 2 . 5 . . . . Authchips 1 | . . . . . . . 1 . . . . Time 256 | . . . . . 64 . 192 . . . . Total Part Build Rating 49 | . . . . . 16 . 33 . . . . Parts Repaired . | . . . . . . . . . . . . Time . | . . . . . . . . . . . . Parts Recycled . | . . . . . . . . . . . . Recycled Matter . | . . . . . . . . . . . . Retrieved Matter . | . . . . . . . . . . . . Retrieved Components 13 | . 1 . . . . . 3 9 . . . Parts Scanalyzed 6 | . . . . . 6 . . . . . . Part Schematics Acquired 6 | . . . . . 6 . . . . . . Parts Damaged 2 | . . . . . 2 . . . . . . Bothacking | -11 -10 -10 -10 -9 -6 -6 -6 -6 -6 -6 -6 ------------ Run | Yrd Mat Min Sub Scr Fac Was Fac Ext Cet Arc Hub Used RIF Installer . | . . . . . . . . . . . . Robots Hacked 3 | . . . . 1 2 . . . . . . Non-combat 2 | . . . . . 2 . . . . . . Combat 1 | . . . . 1 . . . . . . . Robot Hacks Applied 4 | . . . . 1 3 . . . . . . parse_system 1 | . . . . 1 . . . . . . . find_chute 3 | . . . . . 3 . . . . . . Relay Couplers Released . | . . . . . . . . . . . . Fabnet Peak Effective % . | . . . . . . . . . . . . Robots Rewired 7 | . . . . . . . . 7 . . . Allies Hacked . | . . . . . . . . . . . . Hacks Repelled . | . . . . . . . . . . . . Allies | -11 -10 -10 -10 -9 -6 -6 -6 -6 -6 -6 -6 -------- Run | Yrd Mat Min Sub Scr Fac Was Fac Ext Cet Arc Hub Total Allies 21 | . . 2 . . . . . 19 . . . Largest Group 11 | . . 2 2 . . . . 11 2 1 . Highest-Rated Group 478 | . . 51 51 . . . . 478 65 28 . Highest-Rated Ally 159 | . . 31 31 . . . . 159 34 28 . Total Orders . | . . . . . . . . . . . . Ally Attacks 178 | . . 6 30 . . . . 119 22 1 . Total Damage 3784 | . . 40 756 . . . . 2617 349 22 . Kills 29 | . . . 7 . . . . 22 . . . Allies Corrupted 1 | . . . . . . . . 1 . . . Allies Melted 2 | . . . . . . . . 2 . . . Intel | -11 -10 -10 -10 -9 -6 -6 -6 -6 -6 -6 -6 ------- Run | Yrd Mat Min Sub Scr Fac Was Fac Ext Cet Arc Hub Active Infowar (turns) 12436 | 11 888 . 292 50 766 35 1244 631 . 8176 343 Optics 605 | . . . 292 . . . 247 . . . 66 Sensors 10568 | . . . . 49 695 9 1021 384 . 8176 234 IFF 200 | . . . . 1 . . 4 195 . . . Terrain 520 | 11 509 . . . . . . . . . . Structural 262 | . . . . . 4 . 12 77 . . 169 T.N.C. 323 | . . . . . . . 323 . . . . Machine Analysis 379 | . 379 . . . . . . . . . . Cloaking 93 | . . . . . 67 26 . . . . . Jamming 306 | . . . . . . . 75 107 . . 124 Robot Analysis Total 9 | . 1 . . 8 . . . . . . . Derelict Logs Recovered 7 | . . 2 . 5 . . . . . . . Drone Launches . | . . . . . . . . . . . . Drone Recoveries . | . . . . . . . . . . . . Exploration | -11 -10 -10 -10 -9 -6 -6 -6 -6 -6 -6 -6 ------------- Run | Yrd Mat Min Sub Scr Fac Was Fac Ext Cet Arc Hub Turns Passed 20493 | 80 1197 959 1715 3926 770 62 1251 1263 287 8505 478 Spaces Moved 12523 | 61 773 548 1011 3060 1711 157 2031 931 152 1514 574 Core 1152 | 3 . . . 5 . . . . . 1144 . Treads 12 | . 12 . . . . . . . . . . Legs . | . . . . . . . . . . . . Wheels 3337 | 58 761 548 1011 959 . . . . . . . Hover 3079 | . . . . . . . 1052 931 152 370 574 Flight 4943 | . . . . 2096 1711 157 979 . . . . Fastest Speed 20 | 50 95 140 130 32 27 27 20 33 81 45 45 Average Speed 138 | 97 109 141 142 119 27 27 30 67 141 549 53 Slowest Speed 1500 | 100 215 215 160 1500 114 34 120 146 148 700 150 Overloaded Moves 32 | . . . . . . . 27 . 2 3 . Propulsion Burnouts . | . . . . . . . . . . . . Robots Hopped 27 | . . . . . 19 6 2 . . . . Potential Cave-ins . | . . . . . . . . . . . . Cave-ins Triggered . | . . . . . . . . . . . . Exploration Rate (%) 66 | 4 93 91 53 90 46 85 35 87 60 94 59 Regions Visited 11 Branch Regions 7 Pre-discovered Areas 13 | . 2 2 1 6 2 . . . . . . Known Exits Taken 6 | . . 1 . 1 . . 1 1 1 1 . Unknown Exits Taken 3 | 1 1 . 1 . . . . . . . . Scrap Searched 21 | . . 3 8 10 . . . . . . . Spaces Dug 124 | . . . 18 . 22 . 81 . . . 3 Terrain Destroyed 550 | 6 2 . 37 . 22 1 126 1 9 21 325 Melee 27 | . . . . . 19 . 5 . . . 3 Projectile 54 | . . . 13 . 3 1 13 1 2 21 . AOE 469 | 6 2 . 24 . . . 108 . 7 . 322 Terrain Rammed . | . . . . . . . . . . . . Walls Destroyed . | . . . . . . . . . . . . Machines Disabled . | . . . . . . . . . . . . Actions | -11 -10 -10 -10 -9 -6 -6 -6 -6 -6 -6 -6 --------- Run | Yrd Mat Min Sub Scr Fac Was Fac Ext Cet Arc Hub Total 14869 | 75 1005 697 1172 3332 1906 166 2557 1454 197 1624 684 Wait 1385 | 1 107 126 37 224 113 2 354 346 8 29 38 Move 12464 | 60 772 547 1010 3059 1675 147 2026 930 151 1513 574 Hop 22 | . . . . . 17 3 2 . . . . Pick Up 112 | 4 23 3 10 12 9 2 23 15 3 1 7 Fast Attach 84 | 7 6 1 5 12 9 2 9 16 4 11 2 Attach 45 | . 2 . 3 . 7 2 11 10 2 1 7 Detach 11 | . 2 . 1 1 1 2 1 1 . . 2 Swap 124 | 1 7 1 14 3 14 2 42 20 7 2 11 Drop 128 | 1 14 1 21 20 10 1 23 17 4 12 4 Fire 264 | 1 72 18 70 . 3 3 28 15 18 35 1 Melee 194 | . . . 1 1 48 . 38 48 . 20 38 Ram . | . . . . . . . . . . . . Kick . | . . . . . . . . . . . . Crush . | . . . . . . . . . . . . Escape Stasis 13 | . . . . . . . . 13 . . . Rewire 23 | . . . . . . . . 23 . . . Trap . | . . . . . . . . . . . . Miscellaneous . | . . . . . . . . . . . . Route ------- -11/Scrapyard -10/Materials (discovered 5 exits: *Mat x3 / [*Min] / *Sub) -10/Mines (discovered 3 exits: *Mat x2 / *Sub) -10/Subcaves (discovered 4 exits: [*Mat x2] / [*Rec] / *Scr) -9/Scraptown (discovered 2 exits: *Fac x2) -6/Factory (discovered 7 exits: *Fac x3 / *Low x2 / Ext x2) -6/Waste -6/Factory (discovered 5 exits: *Fac / *Low x2 / *Ext x2) -6/Extension (discovered 2 exits: *Fac / *Cet) -6/Cetus (discovered 2 exits: *Fac / *Arc) -6/Archives (discovered 3 exits: *Fac / *Hub x2) -6/Hub_04(d) (discovered 4 exits: *Fac x4) History --------- Turn | Location | Event 4 | -11/Scrapyard | Discovered new exit (range 16) 81 | -11/Scrapyard | Entered Materials 148 | -10/Materials | Discovered new exit (range 11) 279 | -10/Materials | Discovered new exit (range 16) 300 | -10/Materials | Build established: Mutant 743 | -10/Materials | Core integrity fell below 50% 749 | -10/Materials | Identified exit to Subcaves 779 | -10/Materials | Discovered new exit (range 6) 781 | -10/Materials | Derelicts attacked the area 781 | -10/Materials | Identified exit to Materials 801 | -10/Materials | Learned Storage stockpile data 811 | -10/Materials | Learned Storage stockpile data 813 | -10/Materials | Learned 2 Mines zone layouts 814 | -10/Materials | Learned location of 3 exits from Materials 1278 | -10/Materials | Entered Mines 1290 | -10/Mines | Discovered exit to Materials (range 16) 1327 | -10/Mines | Excavation squad dispatched 1327 | -10/Mines | A large section of the Mines collapsed 1700 | -10/Mines | Discovered exit to Subcaves (range 8) 1724 | -10/Mines | Discovered exit to Materials (range 10) 2010 | -10/Mines | Found a damaged Exp. Sensor Array with a note attached 2013 | -10/Mines | Found Prototype Device 2093 | -10/Mines | Learned Materials security intel 2097 | -10/Mines | Learned location of Storage (-9) 2237 | -10/Mines | Entered Subcaves 2237 | -10/Subcaves | Accompanied by 2 allies 2238 | -10/Subcaves | Approached by a straggling Scientist 2242 | -10/Subcaves | Led the pair of lost Derelicts to an unsafe place 2299 | -10/Subcaves | Learned location of Zion (-7) 2299 | -10/Subcaves | Met a Zionite searching for "candidates" 2316 | -10/Subcaves | Shifting Twisted Machinery released Sub. Monowheel 2319 | -10/Subcaves | Discovered new exit (range 15) 2322 | -10/Subcaves | Shifting Twisted Machinery released Sub. Monowheel 2512 | -10/Subcaves | Disturbed a concealed Subdweller 2513 | -10/Subcaves | Disturbed a concealed Subdweller 2955 | -10/Subcaves | Shifting Twisted Machinery released Battle Rifle 2959 | -10/Subcaves | Shifting Twisted Machinery released Flamer 2983 | -10/Subcaves | Shifting Twisted Machinery released Sub. Laser 2986 | -10/Subcaves | Shifting Twisted Machinery released Ripper 3025 | -10/Subcaves | Ambushed by Subdwellers from Twisted Machinery 3028 | -10/Subcaves | Discovered new exit (range 16) 3564 | -10/Subcaves | Core integrity fell below 20% 3579 | -10/Subcaves | Discovered new exit (range 16) 3715 | -10/Subcaves | Scientist uncovered a shortcut to Scraptown 3952 | -10/Subcaves | Entered Scraptown 4151 | -9/Scraptown | Heard Great Nut preacher, LISTEN AND RECITE! 4164 | -9/Scraptown | Visited CR-KLE's Repair Center 4267 | -9/Scraptown | Scanned Subdweller tech in exchange for log data 4272 | -9/Scraptown | Learned Factory security intel 4276 | -9/Scraptown | Learned Factory stockpile data 4278 | -9/Scraptown | Learned Research emergency access door positions 4282 | -9/Scraptown | Learned location of 1 exit from Research 4403 | -9/Scraptown | Discovered new exit (range 13) 4466 | -9/Scraptown | Visited Bundlers 4595 | -9/Scraptown | Visited Spacefarers 4627 | -9/Scraptown | Visited The Evicted 4663 | -9/Scraptown | Visited Cyclists 5078 | -9/Scraptown | Visited UFD Registry 5078 | -9/Scraptown | Registered with UFD as "Quantumripper" 5136 | -9/Scraptown | Visited Abandonware Association 5177 | -9/Scraptown | Learned abandonware demo "HACKBUD.EXE" 5177 | -9/Scraptown | Learned abandonware demo "SHUTEYE.EXE" 5225 | -9/Scraptown | Visited Junk Repository 5270 | -9/Scraptown | Visited Scrap Suit Storage 5304 | -9/Scraptown | Visited DA-N13 Charitable Foundation 5313 | -9/Scraptown | Found DCF Scrap (27 items) 5367 | -9/Scraptown | Visited Analyses Database 5412 | -9/Scraptown | Visited Science Testing Area 5431 | -9/Scraptown | Visited Cartography Club 5472 | -9/Scraptown | Visited Chapter 10 5564 | -9/Scraptown | Visited Infowarlord's Domain 5564 | -9/Scraptown | Identified Exp. Sensor Array 5745 | -9/Scraptown | Delivered Scrap Shield to a Scientist 6119 | -9/Scraptown | Learned location of Lower Caves (-7) 6119 | -9/Scraptown | Learned location of Archives (-6) 6119 | -9/Scraptown | Learned location of Armory (-4) 6119 | -9/Scraptown | Learned 8 Materials zone layouts 6119 | -9/Scraptown | Learned 24 Factory zone layouts 6119 | -9/Scraptown | Learned 12 Lower Caves zone layouts 6119 | -9/Scraptown | Learned 8 Upper Caves zone layouts 6119 | -9/Scraptown | Learned 12 Upper Caves zone layouts 6119 | -9/Scraptown | Learned 24 Upper Caves zone layouts 6119 | -9/Scraptown | Learned 24 Proximity Caves zone layouts 6119 | -9/Scraptown | Learned location of 1 exit from Factory 6119 | -9/Scraptown | Learned location of 3 exits from Upper Caves 6119 | -9/Scraptown | Learned 4 Hub_04(d) zone layouts 6119 | -9/Scraptown | Identified exit to Factory 6119 | -9/Scraptown | Learned location of 1 exit from Proximity Caves 6133 | -9/Scraptown | Found Deep Structural Scanner 6212 | -9/Scraptown | Entered Cyclist Reading Room 7154 | -9/Scraptown | Visited Junk Repository 7638 | -9/Scraptown | Found Exp. Signal Interpreter 7796 | -9/Scraptown | CR-KLE repaired 4 parts 7862 | -9/Scraptown | Met Optimus 7862 | -9/Scraptown | Accepted into 0bPrime 7878 | -9/Scraptown | Entered Factory 7878 | -6/Factory | Evolved 8 slots: Power x1, Propulsion x2, Utility x5 7879 | -6/Factory | Identified exit to Factory 7881 | -6/Factory | Identified exit to Extension 7881 | -6/Factory | Identified exit to Lower Caves 8194 | -6/Factory | Build established: Hacker-Sprinter 8261 | -6/Factory | Loaded intel: 8 recycling unit locations 8295 | -6/Factory | Learned location of Protoforge (-2) 8346 | -6/Factory | Hacking Suite fried by hacking feedback 8364 | -6/Factory | Learned location of 2 exits from Upper Caves 8472 | -6/Factory | Loaded intel: 6 repair station locations 8512 | -6/Factory | Learned Factory repair station intel 8543 | -6/Factory | Learned location of 1 exit from Lower Caves 8598 | -6/Factory | Learned Extension garrison access intel 8617 | -6/Factory | Fabricated Mic. Antimatter Reactor? 8640 | -6/Factory | Learned 2 Extension zone layouts 8648 | -6/Factory | Sucked down chute 8648 | -6/Factory | Entered Waste 8663 | -6/Waste | EMP discharged 8663 | -6/Waste | System corruption reached 10% 8675 | -6/Waste | Spotted C-40 Crusher 8681 | -6/Waste | Spotted C-40 Crusher 8682 | -6/Waste | Spotted C-40 Crusher 8689 | -6/Waste | Spotted C-40 Crusher 8690 | -6/Waste | Spotted C-40 Crusher 8700 | -6/Waste | Spotted C-40 Crusher 8707 | -6/Waste | Discovered new exit (range 14) 8710 | -6/Waste | Identified exit to Factory 8710 | -6/Waste | Entered Factory 8711 | -6/Factory | Loaded intel: 6 repair station locations 8817 | -6/Factory | Fabricated Gravity Neutralizer? 8833 | -6/Factory | Fabricated Imp. Linear Gravjet? 8885 | -6/Factory | Loaded intel: 8 recycling unit locations 9473 | -6/Factory | Build established: Hacker-Scout 9585 | -6/Factory | Fabricated Imp. Linear Gravjet? 9873 | -6/Factory | Discovered exit to Factory (range 8) 9918 | -6/Factory | Build established: Hacker-Sprinter 9961 | -6/Factory | Entered Extension 10219 | -6/Extension | Rescued a captive Derelict 10220 | -6/Extension | Rescued a captive Derelict 10244 | -6/Extension | Rescued a captive Derelict 10246 | -6/Extension | Rescued a captive Derelict 10266 | -6/Extension | Rescued a captive Derelict 10421 | -6/Extension | Lost 4 allies 10572 | -6/Extension | Rescued A7 10579 | -6/Extension | Spotted B-75 Beast 10586 | -6/Extension | Spotted B-75 Beast 10612 | -6/Extension | Allies destroyed B-75 Beast 10641 | -6/Extension | Allies destroyed B-75 Beast 10671 | -6/Extension | Lost 9 parts (1p2n5u1w) 10845 | -6/Extension | Rescued a captive Derelict 10849 | -6/Extension | Rescued a captive Derelict 10857 | -6/Extension | Loaded intel: 1 recycling unit location 10899 | -6/Extension | Rescued a captive Derelict 10900 | -6/Extension | Rescued a captive Derelict 10946 | -6/Extension | Central database locked down 10946 | -6/Extension | Identified exit to Cetus 10973 | -6/Extension | Rescued a captive Derelict 10974 | -6/Extension | Rescued a captive Derelict 10999 | -6/Extension | Discovered exit to Factory (range 10) 11019 | -6/Extension | Learned 2 Hub_04(d) zone layouts 11051 | -6/Extension | Disrupted transfer network 11144 | -6/Extension | Core integrity fell below 50% 11168 | -6/Extension | Lost 9 allies 11224 | -6/Extension | Entered Cetus 11224 | -6/Cetus | Accompanied by 2 allies 11242 | -6/Cetus | Spotted Cetus Guard 11243 | -6/Cetus | Spotted Cetus Guard 11245 | -6/Cetus | Spotted Cetus Guard 11245 | -6/Cetus | Spotted Cetus Guard 11252 | -6/Cetus | Destroyed Cetus Guard 11253 | -6/Cetus | Destroyed Cetus Guard 11253 | -6/Cetus | Destroyed Cetus Guard 11254 | -6/Cetus | Destroyed Cetus Guard 11314 | -6/Cetus | Cetus Manufacturing Module disabled 11357 | -6/Cetus | Discovered new exit (range 15) 11384 | -6/Cetus | Spotted Cetus Guard 11384 | -6/Cetus | Spotted Cetus Guard 11388 | -6/Cetus | Spotted Cetus Guard 11388 | -6/Cetus | Spotted Cetus Guard 11397 | -6/Cetus | Destroyed Cetus Guard 11398 | -6/Cetus | Destroyed Cetus Guard 11399 | -6/Cetus | Destroyed Cetus Guard 11413 | -6/Cetus | Destroyed Cetus Guard 11423 | -6/Cetus | Discovered exit to Factory (range 15) 11434 | -6/Cetus | Met Revision 17 11465 | -6/Cetus | Build established: Scavenger-Mutant 11502 | -6/Cetus | Identified exit to Archives 11511 | -6/Cetus | Entered Archives 11511 | -6/Archives | Accompanied by 1 ally 11512 | -6/Archives | Identified exit to Hub_04(d) 11667 | -6/Archives | Discovered exit to Hub_04(d) (range 13) 11723 | -6/Archives | Discovered exit to Factory (range 15) 12150 | -6/Archives | Build established: Hacker-Mutant 20016 | -6/Archives | Entered Hub_04(d) 20231 | -6/Hub_04(d) | Lost 3 parts (1p1n1u) 20391 | -6/Hub_04(d) | Network Hub disabled 20400 | -6/Hub_04(d) | Central database locked down 20419 | -6/Hub_04(d) | Spotted Lightning 20425 | -6/Hub_04(d) | Spotted Lightning 20457 | -6/Hub_04(d) | Network Hub disabled 20488 | -6/Hub_04(d) | Spotted Lightning 20488 | -6/Hub_04(d) | Spotted Lightning 20488 | -6/Hub_04(d) | Spotted Lightning 20488 | -6/Hub_04(d) | Spotted Lightning 20489 | -6/Hub_04(d) | Spotted Lightning 20489 | -6/Hub_04(d) | Spotted Lightning 20492 | -6/Hub_04(d) | Core integrity fell below 20% 20494 | -6/Hub_04(d) | Destroyed by Lightning with EMDS Last Messages --------------- 20473_ EMDS Slug penetrates Wall. 20474_ Acquired Cmb. Airjet. 20475_ System corrupted: Component data lost. 20475_ EMDS Slug penetrates Wall. 20487_ EMDS Slug penetrates Door. 20488_ I-47 Archangel distress signal jammed. 20489_ Penetrated by EMDS Slug. 20489_ Phasing Sabre destroyed. 20490_ Penetrated by EMDS Slug. 20490_ Adv. Datajack destroyed. 20490_ I-47 Archangel distress signal jammed. 20490_ Penetrated by EMDS Slug. 20490_ Imp. Transmission Jammer destroyed. 20490_ Imp. Linear Gravjet destroyed. 20490_ Gravmag Array destroyed. 20491_ Gravmag System destroyed. 20491_ F-cell Engine destroyed. 20491_ Penetrated by EMDS Slug. 20492_ System corrupted: Matter fused (-8). 20492_ Penetrated by EMDS Slug. Map ----- +----------------------------------------------------+ | ????????????????????????????????????????????? | | ????????????????????????????????????????????? | | ????????????????????????????????????????????? | | ???????????????????????????#############????? | | ???????????????????????????# #????? | | ???????????????????????????# " #????? | | ???????????????????????????# """ #????? | | ???????????????????????????# """"" #????? | | ???????????????????????????# """"""" #????? | | ????????????????????######## """"" #????? | | ???????????????????? ## """ #????? | | ???????????????????? " ## " #????? | | ???????????????????? " ## #????? | | ???????????????????? " ## #????? | | ???????????????????? #######++#####????? | | ????????????????????" " " #?????# ########## | | ????????????????????" " " ##????# # # | | ??????????????????#????????######???????????? | | ??????????????????# ???????# ????????????? | | ??????????????????# ??????# ?????????????? | | ??????????????????? ?????# ######????????? | | ??????????????????###+#????# # #????????? | | ?????????#######+## ##### + #????????? | | ????? hh h # #????????? | | ?????? " < h # #????????? | | ???????????### #### ##@##### #????????? | | ??????????????????## ??# ??# #????????? | | ???????????????????????# ## #????????? | | ???????????????????????# " " ## #????????? | | ???????????????????????# " " ## #???#????? | | ???????????????????????# " " ###"##### #????? | | ???????????????????????# #?# #????? | | ???????????????????????# #?# #????? | | ???? # + ????????????#######?# #????? | | ???? # ## ????????????????????# #????? | | ???? # ## ????????????????????# #######????? | | ???#+# ####????????????????????# #??????????? | | ???# #### ##?????????????????# #???####???? | | ?? ##?????????????????# #?? ####? | | ##### ##????????????????## ### """#? | | ##### ##########????????# "#? | | ####%###### ########## ??????# "#? | | ####+###### ########## # "#? | | * ###=########## * # ## """#? | | ## [%[ #### # ## ####? | | """" ## ![! #### + ########### | | """" ## #### # ## # | | """" ## ############# ## """ # | | """" ## ############ # # | | ## / # =! # | +----------------------------------------------------+ Best States ------------- Heat Dissipation 56 Energy Generation 32 Energy Capacity 550 Matter Stores 300 Matter Capacity 300 Sight Range 22 Robot Scan Range 20 Terrain Scan Range 16 Terrain Scan Density 10 Jamming Range 14 Cloak Strength 2 Additional Mass Support 12 Armor Coverage 675 Resistance: TH 15 Propulsion Shielding 90 Evasion (%) 64 Targeting Accuracy 5 Armor Integrity Analysis 30 Recoil Reduction 1 Offensive Hacking 36 Defensive Hacking 12 Authchip Count 2 Item Schematics ----------------- Huge Storage Unit | -10/Materials | Hacked CPS Tube | -6/Factory | Scanalyzed Jamming Amplifier | -6/Factory | Scanalyzed Nuclear Pulse Thruster | -6/Factory | Scanalyzed Transmission Jammer | -6/Factory | Scanalyzed Mapping Drone Bay | -6/Factory | Scanalyzed Nuclear Pulse Array | -6/Factory | Hacked Imp. Linear Gravjet | -6/Factory | Hacked Centrium Greatsword | -6/Factory | Hacked Imp. Fusion Compressor | -6/Factory | Hacked Cmb. Airjet | -6/Factory | Hacked Gravity Neutralizer | -6/Factory | Scanalyzed Com. Battery | -6/Factory | Extracted Energy Filter | -6/Factory | Extracted Imp. Hacking Suite | -6/Extension | Hacked Hyp. Coil Gun | -6/Hub_04(d) | Hacked Core Analyzer | -6/Hub_04(d) | Hacked Robot Schematics ------------------ None Fabricated ------------ Mic. Antimatter Reactor | x2 | -6/Factory | Preloaded Gravity Neutralizer | x1 | -6/Factory Imp. Linear Gravjet | x2 | -6/Factory Imp. Linear Gravjet | x2 | -6/Factory | Authchip Repaired ---------- Nothing Alien Tech Used ----------------- None Achievements -------------- None Challenges ------------ None Game ------ Seed GammaShadingNeutralizer Manual? 0 Play Time 03:10:13 Cumulative 733.0 hours Start 2025.05.27 @ 16:12:37 End 2025.06.07 @ 10:24:00 Sessions 5 Manual Loads 0 Difficulty Rogue Special Mode None Game No. 276 Rogue 272 Adventurer 4 Explorer 0 Win Type - Total 11 Types 6/1/1/1/0/1/0/0/0/1 Lore% 94 Gallery% 89 Achievement% 87 Wizard Run 0 Options --------- Layout 0 ASCII 0 Keyboard 0 Movement Numpad Keybinds 0 Fullscreen 2 Font 18/CogNarrow Map View 76x50 Zoom Use 0% Tactical HUD 1 Map Filters NONE Filters NONE Steam 1 RUN: 6ae12210-d3ee-41f9-a159-1ca6b15b56ca